bitfinex/quotes_ETHUSD_20250223
["timestamp","ask_amount","ask_price","bid_price","bid_amount"]
[1740312271531,0.8315,2807.7,2806.6,0.2618921]
[1740312271730,0.8315,2807.7,2806.8,3.0]
[1740312272119,0.8315,2807.7,2806.9,0.55]
[1740312272321,0.8315,2807.7,2807.1,0.55]
[1740312273934,0.8315,2807.7,2807.6,0.69959214]
[1740312275550,0.8315,2807.7,2807.0,0.55]
[1740312275754,0.8315,2807.7,2806.9,0.26575886]
[1740312276557,0.8315,2807.7,2806.6,3.81575886]
[1740312277947,0.8113,2807.4,2806.8,0.55]
[1740312278866,0.8113,2807.4,2806.9,0.26575886]
[1740312279456,0.8113,2807.4,2806.9,0.37724681]
[1740312279953,0.8113,2807.4,2807.1,0.55]
[1740312280155,0.8113,2808.0,2807.1,0.55]
[1740312280361,0.58229144,2807.9,2807.1,0.55]
[1740312280556,0.72869842,2807.8,2807.1,0.55]
[1740312280957,0.72869842,2807.8,2807.2,0.11148795]
[1740312281163,0.58229144,2807.9,2807.2,0.37724681]
[1740312281460,1.28872864,2807.9,2807.3,0.55]
[1740312281663,0.8113,2808.0,2807.3,0.55]
[1740312282267,0.8113,2808.0,2807.4,0.11148795]
[1740312282564,0.8113,2808.0,2807.5,0.55]
[1740312283060,0.7521,2808.4,2807.7,0.55]
[1740312283254,0.57637144,2808.3,2807.7,0.55]
[1740312283426,0.7521,2808.2,2807.7,0.55]
[1740312284230,0.7521,2808.2,2807.5,0.37724681]
[1740312285031,0.7521,2808.2,2807.7,0.55]
[1740312285235,0.71280022,2808.3,2807.7,1.3052]
[1740312285462,0.7521,2808.4,2807.7,1.3052]
[1740312285965,0.7521,2808.4,2807.7,0.55]
[1740312286665,0.7521,2808.4,2807.8,0.11148795]
[1740312287736,0.7521,2808.4,2807.9,0.55]
[1740312289139,0.7521,2808.4,2807.8,0.11148795]
[1740312289339,0.7521,2808.4,2807.7,0.37724681]
[1740312289936,0.7521,2808.4,2807.8,0.55]
[1740312292467,0.70912727,2808.1,2807.8,0.55]
[1740312292670,5.0116144,2808.8,2807.8,0.55]
[1740312292869,0.7549,2808.7,2807.8,0.55]
[1740312293176,0.7549,2808.7,2808.0,0.55]
[1740312294073,1.45183045,2808.7,2808.0,0.55]
[1740312294574,5.0116144,2808.8,2808.0,0.55]
[1740312294740,5.0116144,2808.8,2808.2,0.55]
[1740312295166,0.1554344,2808.9,2808.4,0.55]
[1740312298597,0.1554344,2808.9,2808.5,0.7848]
[1740312298925,0.1554344,2808.9,2808.8,0.55]
[1740312303153,0.1554344,2808.9,2808.8,1.27060636]
[1740312308495,0.1554344,2808.9,2808.8,0.72060636]
[1740312308675,0.1554344,2808.9,2808.5,3.7677]
[1740312308858,0.1554344,2808.9,2808.6,0.55]
[1740312310793,0.1554344,2808.9,2808.6,0.66141414]
[1740312311525,0.1554344,2808.9,2808.6,0.92734445]
[1740312313894,0.1554344,2808.9,2808.7,0.11141414]
[1740312314662,0.1554344,2808.9,2808.7,0.37734445]
[1740312315286,0.1554344,2808.9,2808.8,0.66141414]
[1740312315595,0.1554344,2808.9,2808.8,1.46441414]
[1740312316263,0.1554344,2808.9,2808.8,1.73034445]
[1740312317195,0.1554344,2808.9,2808.8,1.61893031]
[1740312317694,0.1554344,2808.9,2808.8,1.353]
[1740312318696,0.1554344,2808.9,2808.8,1.01161218]
[1740312319030,0.1554344,2808.9,2808.8,1.27754249]
[1740312321268,0.1554344,2808.9,2808.8,1.82754249]
[1740312322301,0.1554344,2808.9,2808.8,1.56161218]
[1740312322800,0.1554344,2808.9,2808.8,1.82810105]
[1740312324031,0.1554344,2808.9,2808.8,1.6284666]
[1740312324872,0.1554344,2808.9,2808.8,1.0784666]
[1740312339759,0.9801344,2808.9,2808.8,1.0784666]
[1740312340930,0.9801344,2808.9,2808.8,0.81197773]
[1740312341507,0.9801344,2808.9,2808.8,0.70056359]
[1740312341699,0.9801344,2808.9,2808.1,0.26648887]
[1740312342116,0.9801344,2808.9,2808.2,0.26648887]
[1740312343241,0.9801344,2808.9,2808.3,0.37790301]
[1740312344721,0.9801344,2808.9,2808.3,0.26648887]
[1740312344914,0.7945,2808.7,2808.3,0.26648887]
[1740312345121,0.7945,2808.7,2807.9,0.55]
[1740312345734,0.7945,2808.7,2808.0,0.11143918]
[1740312345940,5.0116144,2808.7,2808.0,0.37814867]
[1740312346146,0.7945,2808.5,2808.0,0.37814867]
[1740312347220,0.7945,2808.5,2808.0,0.26670949]
[1740312347644,0.7945,2808.3,2808.0,0.26670949]
[1740312347843,0.7945,2808.2,2807.6,0.11143918]
[1740312349118,0.7945,2808.2,2807.5,0.37814867]
[1740312349317,0.7945,2808.0,2807.5,0.37814867]
[1740312349917,0.7945,2808.0,2807.5,0.26670949]
[1740312350114,0.7945,2808.0,2807.2,0.37814867]
[1740312350346,0.7945,2807.9,2807.2,0.37814867]
[1740312351646,0.7945,2807.9,2807.1,0.37814867]
[1740312351846,0.7648,2807.8,2807.1,0.37814867]
[1740312352731,0.7648,2807.8,2807.1,0.26670949]
[1740312353430,0.7648,2807.8,2806.8,0.37814867]
[1740312355734,0.7648,2807.8,2806.8,0.11143918]
[1740312356453,5.0116144,2807.9,2807.1,0.55]
[1740312356619,0.8325,2808.2,2807.3,0.55]
[1740312356823,0.8325,2808.2,2807.5,0.55]
[1740312357025,0.8325,2808.2,2807.4,0.8029]
[1740312357363,0.8325,2808.2,2807.2,3.8029]
[1740312357660,0.8325,2808.2,2807.3,0.81670949]
[1740312358028,0.8325,2808.2,2807.3,0.92814867]
[1740312361164,0.8325,2808.2,2807.5,0.55]
[1740312363670,0.8325,2808.2,2807.3,0.37814867]
[1740312364872,0.8325,2808.2,2807.4,0.55]
[1740312366365,0.8325,2808.2,2807.5,0.11143918]
[1740312368173,0.8325,2808.2,2807.5,0.37814867]
[1740312369278,0.8325,2808.2,2807.6,0.11143918]
[1740312369437,0.8325,2808.2,2807.6,0.37814867]
[1740312370884,0.8325,2808.2,2807.7,0.26670949]
[1740312371042,0.8325,2808.2,2807.7,0.37814867]
[1740312372358,0.8325,2808.2,2807.7,0.11143918]
[1740312372871,0.8325,2808.2,2807.4,0.55]
[1740312373981,0.8325,2808.2,2807.5,0.11145625]
[1740312374682,0.8325,2808.2,2807.6,0.26680232]
[1740312375179,0.8325,2808.2,2807.6,0.37825857]
[1740312375786,0.8325,2808.2,2807.7,0.26680232]
[1740312376562,0.8325,2808.2,2807.8,0.11145625]
[1740312377061,0.8325,2808.2,2807.8,0.37825857]
[1740312377780,0.8325,2808.2,2807.8,0.26680232]
[1740312378282,0.8325,2808.2,2807.4,0.55]
[1740312379287,0.8325,2808.2,2807.5,0.11145494]
[1740312379583,0.8325,2808.2,2807.5,0.37842598]
[1740312379977,0.7633,2808.8,2807.6,1.307]
[1740312380176,0.7633,2808.8,2807.6,3.55]
[1740312380380,0.7633,2808.8,2807.9,0.55]
[1740312380566,0.7633,2808.8,2808.0,0.757]
[1740312380886,0.7633,2808.8,2807.6,3.0]
[1740312380887,0.1554344,2808.9,2808.2,0.757]
[1740312381780,0.1554344,2808.9,2808.3,0.55]
[1740312382585,0.1554344,2808.9,2808.5,0.55]
[1740312383995,0.1554344,2808.9,2808.6,0.11145494]
[1740312384486,0.1554344,2808.9,2808.6,0.37842598]
[1740312384793,0.1554344,2808.9,2808.6,1.19812598]
[1740312385782,0.1554344,2808.9,2808.7,0.11145494]
[1740312386292,0.1554344,2808.9,2808.7,0.37842598]
[1740312389158,0.1554344,2808.9,2808.7,0.11145494]
[1740312389654,0.1554344,2808.9,2808.6,1.19812598]
[1740312390390,0.1554344,2808.9,2808.6,0.93115494]
[1740312390565,0.1554344,2808.9,2808.7,0.55]
[1740312391390,0.1554344,2808.9,2808.7,0.66145494]
[1740312392191,0.1554344,2808.9,2808.7,0.11145494]
[1740312392363,0.1554344,2808.9,2808.5,0.11145494]
[1740312392563,0.1554344,2808.9,2808.6,0.55]
[1740312394397,0.1554344,2808.9,2808.5,0.37842598]
[1740312395202,0.7959,2808.8,2808.4,0.11145494]
[1740312396467,0.7959,2808.8,2808.2,3.37842598]
[1740312397485,0.8068,2808.7,2808.2,0.37842598]
[1740312398905,0.8068,2808.7,2808.2,0.11145494]
[1740312399121,0.8068,2808.7,2808.0,0.79]
[1740312399667,0.8068,2808.7,2808.1,0.55]
[1740312399864,5.0116144,2808.8,2808.1,0.55]
[1740312400282,5.0116144,2808.8,2808.1,0.66145494]
[1740312400600,0.1554344,2808.9,2808.3,0.55]
[1740312401404,0.1554344,2808.9,2808.4,1.05697104]
[1740312401631,0.1554344,2808.9,2808.4,1.16842598]
[1740312402103,0.1554344,2808.9,2808.5,0.55]
[1740312402674,0.1554344,2808.9,2808.7,0.55]
[1740312404007,0.1554344,2808.9,2808.7,0.81697104]
[1740312404507,0.1554344,2808.9,2808.8,0.11145494]
[1740312405324,0.1554344,2808.9,2808.8,0.37842598]
[1740312405535,0.9622344,2808.9,2808.8,0.37842598]
[1740312406228,0.9622344,2808.9,2808.8,0.26697104]
[1740312406433,0.9622344,2808.9,2808.5,0.37842598]
[1740312407402,0.9622344,2808.9,2808.5,0.11145494]
[1740312407633,0.9622344,2808.9,2808.2,3.37842598]
[1740312407821,0.9622344,2808.9,2808.2,0.37842598]
[1740312408633,0.9622344,2808.9,2808.3,0.11145494]
[1740312408798,0.9622344,2808.9,2808.3,0.37842598]
[1740312409400,0.7643,2808.8,2808.3,0.37842598]
[1740312410238,0.7643,2808.8,2808.3,0.11145494]
[1740312410459,0.7643,2808.8,2807.6,0.26697104]
[1740312410762,0.7643,2808.6,2807.6,0.26697104]
[1740312411253,0.7643,2808.6,2807.7,0.26697104]
[1740312411459,0.8146,2808.4,2807.7,0.37842783]
[1740312412325,0.8146,2808.4,2807.7,0.11145679]
[1740312412525,0.8146,2808.2,2807.7,0.11145679]
[1740312412756,0.8146,2808.1,2807.0,0.11145679]
[1740312412959,0.8146,2808.0,2807.0,0.37804168]
[1740312413527,0.8146,2808.4,2807.4,0.55]
[1740312413746,0.8146,2808.4,2807.6,0.55]
[1740312413910,0.8146,2808.4,2807.8,0.55]
[1740312414440,0.8146,2808.4,2807.7,3.0]
[1740312414946,0.8146,2808.4,2807.8,0.11145679]
[1740312415445,0.8146,2808.4,2807.9,0.26658489]
[1740312416506,0.8146,2808.4,2808.0,0.11145679]
[1740312416709,0.8146,2808.6,2808.0,0.93665679]
[1740312417543,0.8146,2808.6,2808.1,0.37804168]
[1740312418345,0.8146,2808.6,2808.2,0.11145679]
[1740312419548,0.8146,2808.6,2808.0,0.8252]
[1740312420347,0.8146,2808.6,2808.1,0.26658489]
[1740312422548,0.8146,2808.6,2808.2,0.11143499]
[1740312422943,0.8146,2808.6,2808.2,0.37801988]
[1740312423326,0.1554344,2808.9,2808.3,0.7755]
[1740312423528,0.1554344,2808.9,2808.3,0.88693499]
[1740312424129,0.1554344,2808.9,2808.3,1.15351988]
[1740312425551,0.1554344,2808.9,2808.4,0.11143499]
[1740312429351,0.1554344,2808.9,2808.3,0.7755]
[1740312430920,0.1554344,2808.9,2808.3,1.04208489]
[1740312432465,0.1554344,2808.9,2808.3,0.7755]
[1740312432636,0.1554344,2808.9,2808.4,0.11143407]
[1740312433827,0.1554344,2808.9,2808.3,0.7755]
[1740312436169,0.1554344,2808.9,2808.4,0.26663146]
[1740312436836,0.1554344,2808.9,2808.5,0.11143404]
[1740312438160,0.1554344,2808.9,2808.3,0.7755]
[1740312439052,0.1554344,2808.9,2808.4,0.11143398]
[1740312440163,0.1554344,2808.9,2808.5,0.11143398]
[1740312441561,0.1554344,2808.9,2808.4,0.26664405]
[1740312442971,0.1554344,2808.9,2808.3,0.7755]
[1740312443677,0.1554344,2808.9,2808.4,0.11143713]
[1740312444644,0.1554344,2808.9,2808.5,0.26701978]
[1740312445280,0.1554344,2808.9,2808.6,0.11143713]
[1740312445775,5.1670488,2808.9,2808.6,0.11143713]
[1740312445982,0.59533488,2808.8,2808.6,0.11143713]
[1740312446375,0.59533488,2808.8,2808.1,0.7713]
[1740312446552,5.1670488,2808.9,2808.1,0.7713]
[1740312447582,5.1670488,2808.9,2808.2,0.11143747]
[1740312447978,5.1670488,2808.9,2808.2,0.37855167]
[1740312448285,5.1670488,2808.9,2808.3,0.8185]
[1740312448649,5.1670488,2808.9,2808.3,0.92993747]
[1740312449377,5.1670488,2808.9,2808.4,0.2671142]
[1740312450358,5.1670488,2808.9,2808.5,0.37855167]
[1740312450566,5.76238368,2808.9,2808.5,0.37855167]
[1740312451891,5.76238368,2808.9,2808.6,0.11143747]
[1740312452089,5.1670488,2808.9,2808.6,0.11143747]
[1740312452278,5.1670488,2808.9,2808.6,0.37855167]
[1740312453050,5.1670488,2808.9,2808.7,0.11143747]
[1740312453688,0.1554344,2808.9,2808.8,0.55]
[1740312453888,0.1554344,2808.9,2808.8,1.3371]
[1740312454093,0.1554344,2808.9,2808.8,0.7871]
[1740312454763,0.1554344,2808.9,2808.8,1.1651316]
[1740312458089,0.1554344,2808.9,2808.8,1.86556343]
[1740312459762,0.1554344,2808.9,2808.8,1.07846343]
[1740312461814,0.1554344,2808.9,2808.8,0.8118693]
[1740312463398,0.1554344,2808.9,2808.8,0.70043183]
[1740312463565,0.1554344,2808.9,2808.7,0.26659413]
[1740312464164,0.1554344,2808.9,2808.5,0.26659413]
[1740312464359,0.7818,2808.8,2808.5,0.26659413]
[1740312464999,0.7818,2808.8,2808.6,0.11143197]
[1740312466701,0.7818,2808.8,2808.4,0.3780261]
[1740312467610,0.7818,2808.8,2808.5,0.11143197]
[1740312468688,0.7818,2808.8,2808.3,0.26659413]
[1740312469385,0.7818,2808.8,2808.2,0.8309]
[1740312469582,5.7934144,2808.8,2807.8,1.3608]
[1740312469808,0.66697558,2808.7,2808.3,0.11144096]
[1740312470475,0.70806305,2808.4,2808.3,0.11144096]
[1740312470677,0.70806305,2808.4,2807.8,0.8108]
[1740312470877,0.70806305,2808.4,2807.9,0.2661758]
[1740312471687,5.7934144,2808.8,2808.0,0.92224102]
[1740312471904,5.0116144,2808.8,2808.0,0.92224102]
[1740312472208,5.0116144,2808.8,2808.0,1.18841682]
[1740312472507,0.1554344,2808.9,2808.0,1.18841682]
[1740312472877,0.1554344,2808.9,2808.1,0.11144102]
[1740312473217,0.1554344,2808.9,2808.1,0.37761682]
[1740312473911,0.1554344,2808.9,2808.2,0.11144102]
[1740312474411,0.1554344,2808.9,2808.3,0.8108]
[1740312474581,0.1554344,2808.9,2808.3,1.0769758]
[1740312474787,0.72040395,2808.5,2808.3,1.0769758]
[1740312474993,0.72040395,2808.5,2808.4,0.11144102]
[1740312476210,0.1554344,2808.9,2808.4,0.11144102]
[1740312476415,0.88182924,2808.9,2808.4,0.11144102]
[1740312476780,0.1554344,2808.9,2808.4,0.11144102]
[1740312477508,0.1554344,2808.9,2808.5,0.11144102]
[1740312478711,0.1554344,2808.9,2808.4,0.2661758]
[1740312481529,0.1554344,2808.9,2808.5,0.11143048]
[1740312482922,0.1554344,2808.9,2808.4,0.2661758]
[1740312484328,5.1670488,2808.9,2808.4,0.2661758]
[1740312484505,0.59224488,2808.8,2808.4,0.2661758]
[1740312485297,0.59224488,2808.8,2808.5,0.11143096]
[1740312486523,0.59224488,2808.8,2808.3,0.8108]
[1740312487507,0.59224488,2808.8,2808.4,0.11143158]
[1740312487732,5.1670488,2808.9,2808.4,0.11143158]
[1740312488720,0.71111966,2808.6,2808.5,0.11143158]
[1740312489306,0.71111966,2808.6,2808.5,0.37764598]
[1740312491403,5.1670488,2808.9,2808.5,0.37764598]
[1740312492998,5.1670488,2808.9,2808.6,0.86213158]
[1740312493204,5.1670488,2808.9,2808.6,1.12834598]
[1740312494439,5.1670488,2808.9,2808.7,0.37764598]
[1740312495643,5.1670488,2808.9,2808.8,0.11143158]
[1740312495937,0.1554344,2808.9,2808.8,0.11143158]
[1740312498339,0.1554344,2808.9,2808.6,0.7507]
[1740312499108,0.1554344,2808.9,2808.7,0.11142444]
[1740312499643,0.1554344,2808.9,2808.7,0.37770418]
[1740312500428,0.1554344,2808.9,2808.7,0.26627974]
[1740312500741,0.1554344,2808.9,2808.6,0.7507]
[1740312503045,0.1554344,2808.9,2807.7,8.91111073]
[1740312503223,0.1554344,2808.9,2807.8,0.77]
[1740312503737,0.1554344,2808.9,2808.1,0.77]
[1740312504050,0.7617,2808.8,2808.1,0.77]
[1740312504354,0.7617,2808.8,2808.2,0.26625043]
[1740312505042,0.7617,2808.8,2808.3,0.11142687]
[1740312505740,0.7617,2808.8,2808.4,0.26625043]
[1740312506048,0.7617,2808.8,2808.5,0.11142687]
[1740312507154,0.7617,2808.8,2808.6,0.3776773]
[1740312507650,5.7733144,2808.8,2808.6,0.3776773]
[1740312507857,0.7617,2808.6,2807.2,0.77]
[1740312508155,0.7617,2808.4,2807.2,0.77]
[1740312508451,0.7617,2808.2,2806.7,0.70104753]
[1740312508656,0.7617,2808.0,2806.7,0.70104753]
[1740312508821,0.7159513,2807.7,2806.8,0.77]
[1740312510333,5.0116144,2807.9,2806.8,0.77]
[1740312511452,5.0116144,2807.9,2806.7,0.70104753]
[1740312511453,0.7057917,2807.8,2806.9,0.55]
[1740312511659,0.7057917,2807.8,2807.0,0.8183]
[1740312512523,0.7057917,2807.8,2807.2,0.8183]
[1740312512749,0.26,2808.5,2807.5,0.55]
[1740312512750,0.8255,2808.3,2807.5,0.55]
[1740312512953,5.0116144,2808.5,2807.6,0.8183]
[1740312513250,5.59532584,2808.5,2807.6,0.8183]
[1740312514285,0.71363859,2808.3,2807.6,0.8183]
[1740312515237,0.8255,2808.2,2807.1,0.8183]
[1740312515645,0.8255,2808.2,2807.2,0.71699135]
[1740312516359,0.8255,2808.2,2807.1,0.8183]
[1740312517143,5.8307144,2808.1,2807.1,0.8183]
[1740312517349,0.58307144,2808.0,2807.1,0.8183]
[1740312517546,5.8307144,2808.1,2807.1,0.8183]
[1740312518158,5.8307144,2808.1,2807.2,0.55]
[1740312518353,5.0116144,2808.1,2807.1,0.55]
[1740312518762,5.0116144,2808.1,2807.4,0.8243]
[1740312520931,5.0116144,2808.1,2807.5,0.11145408]
[1740312521800,0.7958,2808.0,2807.5,0.11145408]
[1740312522138,0.7958,2808.0,2807.4,0.8243]
[1740312522873,1.37654144,2808.0,2807.3,0.11145408]
[1740312523034,6.38815584,2808.0,2807.3,0.11145408]
[1740312523941,6.38815584,2808.0,2807.2,0.7574]
[1740312525073,6.38815584,2808.0,2807.3,0.11145408]
[1740312525672,5.8074144,2808.0,2807.3,0.11145408]
[1740312526947,0.7789,2807.9,2807.3,0.11145408]
[1740312527996,0.7789,2807.9,2806.7,0.7713]
[1740312528153,0.7789,2807.7,2806.7,0.7713]
[1740312528985,0.72253232,2807.4,2806.7,0.7713]
[1740312529184,0.7789,2807.3,2806.7,0.7713]
[1740312529489,0.7789,2807.3,2806.8,0.11145408]
[1740312531257,0.72253232,2807.4,2806.7,0.7713]
[1740312531258,0.72253232,2807.4,2806.9,0.11145408]
[1740312532793,0.7789,2807.5,2807.0,0.11145408]
[1740312533858,1.47506278,2807.5,2807.0,0.11145408]
[1740312534091,2.1237305,2807.5,2807.0,0.11145408]
[1740312534294,2.1237305,2807.5,2806.8,0.11145408]
[1740312535499,2.1237305,2807.5,2806.9,0.11145408]
[1740312535700,1.42756772,2807.5,2806.9,0.11145408]
[1740312536662,0.7982,2807.4,2806.9,0.11145408]
[1740312536897,0.7982,2807.4,2807.0,0.11145408]
[1740312536898,5.0116144,2807.4,2807.0,0.11145408]
[1740312537109,0.7982,2807.2,2807.0,0.11145408]
[1740312538392,5.0116144,2807.1,2806.3,0.11145408]
[1740312538595,0.7982,2807.0,2806.3,0.11145408]
[1740312539394,0.7982,2807.0,2806.0,0.11145408]
[1740312539593,0.7982,2806.9,2806.0,0.11145408]
[1740312539919,0.7982,2806.7,2806.0,0.11145408]
[1740312540299,0.7982,2806.5,2806.0,0.11145408]
[1740312540670,0.7982,2806.5,2805.8,0.11145408]
[1740312542005,0.7982,2806.5,2805.9,0.11145408]
[1740312543183,0.7982,2806.5,2805.4,0.11145408]
[1740312543368,5.0116144,2806.4,2805.4,0.11145408]
[1740312544371,5.0116144,2806.4,2805.5,0.11145408]
[1740312544576,0.7831,2806.2,2805.5,0.11145408]
[1740312545072,5.1116144,2806.3,2805.5,0.11145408]
[1740312545073,0.7831,2805.9,2805.5,0.11145408]
[1740312545293,0.2723249,2806.0,2805.5,0.11145408]
[1740312545294,0.7831,2805.7,2805.5,0.11145408]
[1740312545605,0.7831,2805.5,2804.5,0.7745]
[1740312545917,5.7947144,2805.5,2804.5,0.7745]
[1740312546607,5.7947144,2805.5,2804.7,0.8193]
[1740312548406,5.7947144,2805.5,2804.4,0.8193]
[1740312548790,0.7679,2805.4,2804.4,0.8193]
[1740312549195,5.0116144,2805.5,2804.5,0.55]
[1740312549402,5.0116144,2805.5,2804.7,0.55]
[1740312549774,1.46719819,2805.6,2804.7,0.55]
[1740312550211,0.69929819,2805.6,2804.8,0.8193]
[1740312550504,0.7679,2806.0,2804.9,0.55]
[1740312550908,0.7679,2806.0,2804.8,0.8193]
[1740312551111,0.7679,2806.0,2804.8,1.22723]
[1740312551787,5.7795144,2806.0,2804.9,0.55]
[1740312551989,5.7795144,2806.0,2805.1,0.55]
[1740312555728,0.7885,2805.9,2805.0,0.7605]
[1740312555891,0.7885,2805.9,2804.7,0.87195408]
[1740312556223,0.7885,2805.7,2804.8,0.41319541]
[1740312556617,0.7885,2805.7,2804.7,0.87195408]
[1740312558212,5.0116144,2805.7,2804.7,0.87195408]
[1740312558529,0.7928,2805.6,2804.7,0.11145408]
[1740312558712,5.0116144,2805.5,2804.7,0.11145408]
[1740312558925,0.70664666,2805.2,2804.7,0.11145408]
[1740312559092,0.7928,2805.1,2804.3,0.11145408]
[1740312559290,0.65110611,2805.0,2804.3,0.11145408]
[1740312559707,0.7928,2804.9,2804.3,0.11145408]
[1740312560425,0.7928,2804.9,2804.0,0.7645]
[1740312560721,5.8044144,2804.9,2804.0,0.7645]
[1740312561605,5.8044144,2804.9,2804.1,0.11145408]
[1740312561805,6.44996645,2804.9,2804.1,0.11145408]
[1740312562127,0.8303,2804.8,2804.1,0.11145408]
[1740312562704,0.8303,2804.8,2803.5,0.55]
[1740312563303,0.8303,2804.6,2803.4,0.11145408]
[1740312563615,0.58419144,2804.5,2803.4,0.11145408]
[1740312564427,0.58419144,2804.5,2803.5,0.11145408]
[1740312564630,0.8303,2804.4,2803.5,0.11145408]
[1740312565635,0.8303,2804.4,2803.6,0.11145408]
[1740312566709,0.8303,2804.4,2803.1,3.11145408]
[1740312567596,5.8419144,2804.3,2803.1,0.11145408]
[1740312567795,0.8303,2804.2,2803.1,0.11145408]
[1740312568014,0.8303,2804.0,2803.2,0.11145408]
[1740312568228,5.8419144,2804.0,2803.2,0.11145408]
[1740312568398,0.8303,2803.9,2803.2,0.11145408]
[1740312568601,5.8419144,2803.9,2803.2,0.11145408]
[1740312568842,0.8303,2803.8,2803.2,0.11145408]
[1740312569035,0.58419144,2803.7,2803.2,0.11145408]
[1740312569222,0.8303,2803.6,2803.2,0.11145408]
[1740312569526,0.8303,2803.6,2802.8,0.11145408]
[1740312570232,0.8303,2803.6,2802.7,0.11145408]
[1740312570608,0.8303,2803.4,2802.7,0.11145408]
[1740312570932,0.26,2804.0,2802.7,0.11145408]
[1740312570933,0.8303,2803.2,2802.7,0.11145408]
[1740312571136,1.0903,2803.2,2802.7,0.11145408]
[1740312571301,0.8303,2803.1,2802.7,0.11145408]
[1740312571897,0.8303,2803.1,2802.1,0.11145408]
[1740312572099,0.812,2802.9,2802.1,0.11145408]
[1740312572400,0.58236144,2802.8,2802.1,0.11145408]
[1740312572601,0.812,2802.9,2802.1,0.11145408]
[1740312574520,0.812,2802.9,2801.9,0.55]
[1740312574708,0.70742261,2802.7,2801.9,0.55]
[1740312575439,0.812,2802.9,2801.9,0.55]
[1740312576507,0.812,2802.9,2802.1,0.55]
[1740312576931,0.7876,2803.1,2802.0,0.7814]
[1740312577209,0.19999267,2804.4,2802.0,0.7814]
[1740312577210,0.7876,2803.3,2802.2,0.7814]
[1740312577408,0.7876,2803.3,2802.4,0.7814]
[1740312578039,0.261,2804.1,2802.7,0.55]
[1740312578040,0.7876,2803.9,2802.7,0.55]
[1740312578243,0.7876,2803.8,2802.7,0.55]
[1740312579651,0.7876,2803.2,2802.6,0.89285408]
[1740312579954,0.7876,2803.2,2802.6,1.55128284]
[1740312583449,0.7876,2803.2,2802.6,0.89285408]
[1740312583614,0.7876,2803.2,2802.6,0.11145408]
[1740312584730,0.7876,2803.2,2802.5,3.11145408]
[1740312585540,0.7876,2803.2,2802.5,0.11145408]
[1740312586221,0.7876,2803.2,2802.6,0.11145408]
[1740312587533,0.7876,2803.2,2802.7,0.11145408]
[1740312589377,0.7876,2803.2,2802.8,0.11145408]
[1740312589714,0.8006,2803.6,2802.8,0.89555408]
[1740312589916,0.58122144,2803.5,2802.8,0.11145408]
[1740312590736,0.58122144,2803.5,2802.9,0.11145408]
[1740312591447,5.59283584,2803.5,2802.9,0.11145408]
[1740312591650,0.7831,2803.4,2802.9,0.11145408]
[1740312592448,0.7831,2803.4,2803.0,0.11145408]
[1740312592648,0.63759358,2803.3,2803.0,0.11145408]
[1740312593854,0.63759358,2803.3,2802.6,0.7841]
[1740312595261,0.63759358,2803.3,2802.7,0.11164363]
[1740312596627,5.0116144,2803.5,2802.8,0.11164363]
[1740312598248,5.0116144,2803.5,2802.9,0.11164363]
[1740312599229,5.0116144,2803.5,2803.0,0.11164363]
[1740312600531,5.0116144,2803.5,2803.1,0.11164363]
[1740312601168,5.0116144,2803.5,2803.1,0.87364363]
[1740312601458,0.58229144,2803.4,2803.1,0.87364363]
[1740312601641,0.58229144,2803.4,2803.1,0.11164363]
[1740312602229,0.58229144,2803.4,2803.2,0.11164363]
[1740312602443,5.0116144,2803.5,2803.2,0.11164363]
[1740312603657,5.0116144,2803.5,2803.3,0.11164363]
[1740312605353,5.0116144,2803.5,2803.4,0.11164363]
[1740312606163,5.0116144,2803.7,2803.4,0.11164363]
[1740312606955,5.0116144,2803.7,2803.5,0.11164363]
[1740312607136,1.39079144,2803.6,2803.5,0.11164363]
[1740312607567,6.40240584,2803.6,2803.5,0.11164363]
[1740312607769,10.3430824,2803.6,2802.2,0.7633]
[1740312607969,0.8085,2803.3,2802.0,0.7633]
[1740312608136,0.8085,2803.1,2802.0,0.7633]
[1740312612254,5.8201144,2803.1,2802.0,0.7633]
[1740312612572,0.58201144,2803.0,2802.0,0.7633]
[1740312612974,0.7583,2802.9,2802.0,0.7633]
[1740312613340,5.0116144,2802.8,2801.6,0.7811]
[1740312613535,0.7583,2802.7,2801.6,0.7811]
[1740312613845,0.7583,2802.5,2801.6,0.7811]
[1740312614040,0.57699144,2802.4,2801.6,0.7811]
[1740312619162,0.7862,2802.3,2801.3,0.8201]
[1740312620054,0.7862,2802.3,2801.1,3.8201]
[1740312620277,0.732402,2802.0,2801.1,0.8201]
[1740312620865,0.732402,2802.0,2801.2,0.55]
[1740312621178,0.7862,2802.2,2801.3,0.8201]
[1740312621360,1.18059411,2802.2,2801.3,0.8201]
[1740312621563,0.7862,2802.2,2801.4,0.55]
[1740312621763,1.36449144,2802.4,2801.5,0.779]
[1740312622780,2.08617223,2802.4,2801.5,0.779]
[1740312624281,2.08617223,2802.4,2801.6,0.55]
[1740312624484,1.50918079,2802.4,2801.6,0.55]
[1740312625978,1.50918079,2802.4,2801.7,0.71999628]
[1740312628566,0.7612,2802.3,2801.7,0.71999628]
[1740312629384,0.7612,2802.3,2801.5,0.779]
[1740312629687,0.7612,2802.3,2801.1,6.1748]
[1740312629891,0.7612,2802.2,2800.9,0.7848]
[1740312630090,0.7612,2802.0,2800.9,0.7848]
[1740312631167,0.7612,2802.0,2801.0,0.55]
[1740312631563,0.7612,2802.0,2801.2,0.55]
[1740312631776,5.7824144,2802.2,2801.3,0.7642]
[1740312633492,5.7824144,2802.2,2801.1,0.55]
[1740312633493,0.7708,2802.1,2801.1,0.55]
[1740312633801,0.7708,2801.9,2801.1,0.55]
[1740312634296,0.7708,2801.9,2801.1,0.55]
[1740312634660,0.7708,2801.9,2801.0,0.7642]
[1740312636805,0.7708,2801.9,2801.0,0.6642]
[1740312639222,0.7708,2801.9,2800.8,0.26379551]
[1740312640472,0.7708,2801.9,2800.6,0.26512781]
[1740312642502,5.0116144,2801.8,2800.6,0.26512781]
[1740312642703,0.8324,2801.6,2800.3,0.7659]
[1740312642874,5.8440144,2801.5,2800.3,0.7659]
[1740312643073,5.8440144,2801.5,2800.6,0.7659]
[1740312643283,5.8440144,2801.5,2800.7,0.55]
[1740312645611,5.59601584,2801.5,2800.7,0.55]